fUSD/lending_fUSD_20241223
["ID","MTS","AMOUNT","RATE_DAILY","PERIOD"]
[346445113,1734978660001,-2048.77,0.000178,2]
[346445114,1734978660011,-500.0,0.000178,2]
[346445115,1734978660021,-806.0,0.000178,2]
[346445116,1734978660030,-500.0,0.000178,2]
[346445117,1734978660040,-1317.36,0.000178,2]
[346445118,1734978660049,-500.0,0.000178,2]
[346445119,1734978660059,-500.0,0.000178,2]
[346445120,1734978660068,-500.0,0.000178,2]
[346445121,1734978660078,-1102.39,0.000178,2]
[346445122,1734978660088,-500.0,0.000178,2]
[346445123,1734978660097,-1539.45,0.000178,2]
[346445124,1734978660107,-886.31,0.000178,2]
[346445125,1734978660116,-934.27,0.000178,2]
[346445126,1734978660127,-1067.46,0.000178,2]
[346445127,1734978660137,-504.22,0.000178,2]
[346445128,1734978660146,-500.0,0.000178,2]
[346445129,1734978660156,-1887.18,0.000178,2]
[346445130,1734978660165,-500.0,0.000178,2]
[346445131,1734978660175,-500.0,0.000178,2]
[346445132,1734978660185,-500.0,0.000178,2]
[346445133,1734978660194,-500.0,0.000178,2]
[346445134,1734978660204,-772.27,0.000178,2]
[346445135,1734978660214,-706.47,0.000178,2]
[346445136,1734978660224,-2041.27,0.000178,2]
[346445137,1734978660233,-712.24,0.000178,2]
[346445138,1734978660244,-500.0,0.000178,2]
[346445139,1734978660254,-875.17,0.000178,2]
[346445140,1734978660263,-500.0,0.000178,2]
[346445141,1734978660273,-621.48577905,0.000178,2]
[346445142,1734978660282,-569.32,0.000178,2]
[346445143,1734978660291,-996.92,0.000178,2]
[346445144,1734978660301,-500.0,0.000178,2]
[346445145,1734978660324,-609.5,0.000178,2]
[346445146,1734978660334,-500.0,0.000178,2]
[346445147,1734978660343,-500.0,0.000178,2]
[346445148,1734978660353,-686.16,0.000178,2]
[346445149,1734978660362,-2147.75,0.000178,2]
[346445150,1734978660372,-655.52,0.000178,2]
[346445151,1734978660384,-500.0,0.000178,2]
[346445152,1734978660393,-627.09,0.000178,2]
[346445153,1734978660402,-500.0,0.000178,2]
[346445154,1734978660411,-500.0,0.000178,2]
[346445155,1734978660421,-500.0,0.000178,2]
[346445156,1734978660429,-1118.43,0.000178,2]
[346445157,1734978660439,-500.0,0.000178,2]
[346445158,1734978660448,-512.79958176,0.000178,2]
[346445159,1734978660457,-1978.43,0.000178,2]
[346445160,1734978660467,-1473.13,0.000178,2]
[346445161,1734978660479,-500.0,0.000178,2]
[346445162,1734978660488,-500.0,0.000178,2]
[346445163,1734978660496,-500.0,0.000178,2]
[346445164,1734978660505,-512.27,0.000178,2]
[346445165,1734978660515,-935.2,0.000178,2]
[346445166,1734978660524,-500.0,0.000178,2]
[346445167,1734978660533,-500.0,0.000178,2]
[346445168,1734978660542,-507.46,0.000178,2]
[346445169,1734978660551,-500.0,0.000178,2]
[346445170,1734978660560,-500.0,0.000178,2]
[346445171,1734978660570,-1387.97,0.000178,2]
[346445172,1734978660580,-714.91,0.000178,2]
[346445173,1734978660589,-500.0,0.000178,2]
[346445174,1734978660599,-728.62,0.000178,2]
[346445175,1734978660608,-224.92575836,0.000178,2]
[346445176,1734978660617,-845.29,0.000178,2]
[346445177,1734978660628,-500.0,0.000178,2]
[346445178,1734978660637,-1713.86,0.000178,2]
[346445179,1734978660646,-500.0,0.000178,2]
[346445180,1734978660656,-500.0,0.000178,2]
[346445181,1734978660666,-1195.09,0.000178,2]
[346445182,1734978660675,-620.18,0.000178,2]
[346445183,1734978660685,-500.0,0.000178,2]
[346445184,1734978660695,-827.2,0.000178,2]
[346445185,1734978660704,-972.52,0.000178,2]
[346445186,1734978660714,-500.0,0.000178,2]
[346445187,1734978660723,-1447.08,0.000178,2]
[346445188,1734978660733,-536.58,0.000178,2]
[346445189,1734978660744,-500.0,0.000178,2]
[346445190,1734978660754,-867.24,0.000178,2]
[346445191,1734978660763,-500.0,0.000178,2]
[346445192,1734978660772,-500.0,0.000178,2]
[346445193,1734978660782,-500.0,0.000178,2]
[346445194,1734978660791,-360.86482582,0.000178,2]
[346445195,1734978660807,-1402.75517418,0.000178,2]
[346445196,1734978660816,-500.0,0.000178,2]
[346445197,1734978660825,-500.0,0.000178,2]
[346445198,1734978660835,-308.65465792,0.000178,2]
[346445199,1734978660844,-552.74,0.000178,2]
[346445200,1734978660853,-500.0,0.000178,2]
[346445201,1734978660863,-500.0,0.000178,2]
[346445202,1734978660875,-654.46,0.000178,2]
[346445203,1734978660884,-734.14,0.000178,2]
[346445204,1734978660893,-510.47,0.000178,2]
[346445205,1734978660903,-572.12940752,0.000178,2]
[346445206,1734978660914,-315.82059248,0.000178,2]
[346445207,1734978660923,-500.0,0.000178,2]
[346445208,1734978660932,-1152.51,0.000178,2]
[346445209,1734978660942,-500.0,0.000178,2]
[346445210,1734978660951,-500.0,0.000178,2]
[346445211,1734978660960,-909.05,0.000178,2]
[346445212,1734978660969,-500.0,0.000178,2]
[346445213,1734978660978,-960.11940752,0.000178,2]
[346445214,1734978660994,-801.50059248,0.000178,2]
[346445215,1734978661003,-899.36,0.000178,2]
[346445216,1734978661013,-500.0,0.000178,2]
[346445217,1734978661023,-508.29,0.000178,2]
[346445218,1734978661032,-500.0,0.000178,2]
[346445219,1734978661041,-578.67,0.000178,2]
[346445220,1734978661051,-500.0,0.000178,2]
[346445221,1734978661060,-1338.46,0.000178,2]
[346445222,1734978661069,-729.45,0.000178,2]
[346445223,1734978661079,-11804.3,0.000178,2]
[346445224,1734978661088,-500.0,0.000178,2]
[346445225,1734978661097,-1458.56,0.000178,2]
[346445226,1734978661106,-500.0,0.000178,2]
[346445227,1734978661115,-580.02,0.000178,2]
[346445228,1734978661125,-515.25,0.000178,2]
[346445229,1734978661134,-500.0,0.000178,2]
[346445230,1734978661143,-629.64,0.000178,2]
[346445231,1734978661152,-1382.51,0.000178,2]
[346445232,1734978661161,-500.0,0.000178,2]
[346445233,1734978661170,-3317.06,0.000178,2]
[346445234,1734978661179,-2350.66,0.000178,2]
[346445235,1734978661188,-500.0,0.000178,2]
[346445236,1734978661198,-4796.6469947,0.000178,2]
[346445237,1734978661209,-6727.5030053,0.000178,2]
[346445238,1734978661218,-531.16,0.000178,2]
[346445239,1734978661228,-606.93,0.000178,2]
[346445240,1734978661237,-1071.93,0.000178,2]
[346445241,1734978661246,-500.0,0.000178,2]
[346445242,1734978661255,-500.0,0.000178,2]
[346445243,1734978661265,-500.0,0.000178,2]
[346445244,1734978661274,-3398.3,0.000178,2]
[346445245,1734978661283,-2729.81,0.000178,2]
[346445246,1734978661292,-500.0,0.000178,2]
[346445247,1734978661301,-3960.41,0.000178,2]
[346445248,1734978661310,-1221.95,0.000178,2]
[346445249,1734978661319,-563.5,0.000178,2]
[346445250,1734978661328,-1102.98,0.000178,2]
[346445251,1734978661338,-1186.3,0.000178,2]
[346445252,1734978661347,-511.05554815,0.000178,2]
[346445253,1734978661357,-1007.87,0.000178,2]
[346445254,1734978661366,-1155.29,0.000178,2]
[346445255,1734978661380,-500.0,0.000178,2]
[346445256,1734978661390,-6554.24,0.000178,2]
[346445257,1734978661399,-1893.09,0.000178,2]
[346445258,1734978661409,-500.0,0.000178,2]
[346445259,1734978661418,-4918.37,0.000178,2]
[346445260,1734978661428,-1957.81144893,0.000178,2]
[346445261,1734978661439,-500.0,0.000178,2]
[346445262,1734978661451,-358.95099704,0.000178,2]
[346445263,1734978661462,-1893.96755403,0.000178,2]
[346445264,1734978661472,-877.87,0.000178,2]
[346445265,1734978661482,-251.79258121,0.000178,2]
[346445266,1734978661494,-248.20741879,0.000178,2]
[346445267,1734978661504,-500.0,0.000178,2]
[346445268,1734978661513,-1261.02,0.000178,2]
[346445269,1734978661523,-967.85709069,0.000178,2]
[346445270,1734978661535,-655.5723265,0.000178,2]
[346445271,1734978661546,-16527.05058281,0.000178,2]
[346445272,1734978661555,-680.33,0.000178,2]
[346445273,1734978661565,-830.04,0.000178,2]
[346445274,1734978661574,-1754.49,0.000178,2]
[346445275,1734978661584,-4272.01,0.000178,2]
[346445276,1734978661593,-511.31,0.000178,2]
[346445277,1734978661603,-9521.29,0.000178,2]
[346445278,1734978661613,-1056.0,0.000178,2]
[346445279,1734978661626,-500.0,0.000178,2]
[346445280,1734978661635,-1163.4,0.000178,2]
[346445281,1734978661644,-500.0,0.000178,2]
[346445282,1734978661654,-620.92,0.000178,2]
[346445283,1734978661663,-837.0,0.000178,2]
[346445284,1734978661672,-500.0,0.000178,2]
[346445285,1734978661682,-500.0,0.000178,2]
[346445286,1734978661691,-500.0,0.000178,2]
[346445287,1734978661701,-3598.24,0.000178,2]
[346445288,1734978661711,-500.0,0.000178,2]
[346445289,1734978661720,-4095.47,0.000178,2]
[346445290,1734978661729,-500.0,0.000178,2]
[346445291,1734978661738,-2240.74,0.000178,2]
[346445292,1734978661748,-500.0,0.000178,2]
[346445293,1734978661757,-9046.78,0.000178,2]
[346445294,1734978661767,-500.0,0.000178,2]
[346445295,1734978661776,-845.75,0.000178,2]
[346445296,1734978661787,-7356.47281997,0.000178,2]
[346445297,1734978661811,-1180.32718003,0.000178,2]
[346445298,1734978661820,-500.0,0.000178,2]
[346445299,1734978661830,-500.0,0.000178,2]
[346445300,1734978661841,-395.22,0.000178,2]
[346445301,1734978661850,-2150.96470402,0.000178,2]
[346445302,1734978662018,-5781.74529598,0.000178,2]
[346445303,1734978662028,-1057.98,0.000178,2]
[346445304,1734978662037,-673.74,0.000178,2]
[346445305,1734978662047,-500.0,0.000178,2]
[346445306,1734978662056,-2368.75,0.000178,2]
[346445307,1734978662066,-749.57,0.000178,2]
[346445308,1734978662075,-500.0,0.000178,2]
[346445309,1734978662085,-445.28662939,0.000178,2]
[346445310,1734978662105,-54.71337061,0.000178,2]
[346445311,1734978662115,-500.0,0.000178,2]
[346445312,1734978662128,-2431.85,0.000178,2]
[346445313,1734978662137,-311.55853291,0.000178,2]
[346445314,1734978662150,-188.44146709,0.000178,2]
[346445315,1734978662160,-500.0,0.000178,2]
[346445316,1734978662169,-208.87363964,0.000178,2]
[346445317,1734978662181,-1259.96146625,0.000178,2]
[346445318,1734978662198,-788.59489411,0.000178,2]
[346445319,1734978662208,-2171.69,0.000178,2]
[346445320,1734978662219,-979.88,0.000178,2]
[346445321,1734978662229,-500.0,0.000178,2]
[346445322,1734978662239,-517.78120589,0.000178,2]
[346445323,1734978861876,3000.0,0.00026654,120]
[346445329,1734979379112,-526.93,0.00014753,2]
[346445330,1734979379133,-250.0,0.00016368,2]
[346445331,1734979379155,-250.0,0.00016415,2]
[346445332,1734979379177,-344.08,0.00016575,2]
[346445333,1734979379201,-170.43,0.00016658,30]
[346445334,1734979379223,-250.0,0.00016703,2]
[346445335,1734979379244,-150.0,0.00016739,2]
[346445337,1734979379267,-800.72,0.00016789,2]
[346445338,1734979379288,-265.72900004,0.00016853,2]
[346445339,1734979379311,-171.26,0.00016953,2]
[346445340,1734979379333,-265.72900003,0.00017002,2]
[346445341,1734979379355,-526.93,0.00017016,2]
[346445342,1734979379376,-796.0,0.0001708,2]
[346445343,1734979379399,-3216.00757155,0.0001715,2]
[346445344,1734979379422,-265.72900003,0.0001715,2]
[346445345,1734979379444,-1171.6109,0.00017152,2]
[346445346,1734979379465,-1427.03622518,0.0001719,2]
[346445347,1734979379487,-946.97,0.00017249,2]
[346445348,1734979379508,-500.0,0.00017249,2]
[346445349,1734979379530,-1073.05,0.00017249,2]
[346445350,1734979379552,-2323.63,0.00017249,2]
[346445351,1734979379573,-3167.94,0.00017249,2]
[346445352,1734979379594,-2292.8,0.00017249,2]
[346445353,1734979379615,-2294.43,0.00017249,2]
[346445354,1734979379637,-500.0,0.00017249,2]
[346445355,1734979379658,-994.54,0.00017249,2]
[346445356,1734979379678,-500.0,0.00017249,2]
[346445357,1734979379704,-1916.33,0.00017249,2]
[346445358,1734979379727,-517.01,0.00017249,2]
[346445359,1734979379748,-500.0,0.00017249,2]
[346445360,1734979379770,-771.01,0.00017249,2]
[346445361,1734979379791,-3890.24,0.00017249,2]
[346445362,1734979379812,-4907.33,0.00017249,2]
[346445363,1734979379833,-1036.33,0.00017249,2]
[346445364,1734979379856,-500.0,0.00017249,2]
[346445365,1734979379877,-1621.42,0.00017249,2]
[346445366,1734979379900,-500.0,0.00017249,2]
[346445367,1734979379921,-561.36,0.00017249,2]
[346445368,1734979379942,-6199.08,0.00017249,2]
[346445369,1734979379962,-1495.22,0.00017249,2]
[346445370,1734979379984,-500.0,0.00017249,2]
[346445371,1734979380011,-500.0,0.00017249,2]
[346445372,1734979380035,-2963.01,0.00017249,2]
[346445373,1734979380058,-19032.56,0.00017249,2]
[346445374,1734979380082,-1105.65,0.00017249,2]
[346445375,1734979380104,-500.0,0.00017249,2]
[346445376,1734979380125,-500.0,0.00017249,2]
[346445377,1734979380147,-3483.46,0.00017249,2]
[346445378,1734979380458,-1936.61,0.00017249,2]
[346445379,1734979380482,-4787.85,0.00017249,2]
[346445380,1734979380504,-500.0,0.00017249,2]
[346445381,1734979380526,-1636.43,0.00017249,2]
[346445382,1734979380548,-6135.29,0.00017249,2]
[346445383,1734979380570,-7406.66,0.00017249,2]
[346445384,1734979380592,-1896.84,0.00017249,2]
[346445385,1734979380613,-3961.08,0.00017249,2]
[346445386,1734979380634,-3888.71,0.00017249,2]
[346445387,1734979380656,-1274.68,0.00017249,2]
[346445388,1734979380678,-3012.85,0.00017249,2]
[346445389,1734979380700,-1880.28,0.00017249,2]
[346445390,1734979380726,-6536.91,0.00017249,2]
[346445391,1734979380748,-986.71,0.00017249,2]
[346445392,1734979380770,-20885.3,0.00017249,2]
[346445393,1734979380793,-817.19,0.00017249,2]
[346445394,1734979380823,-992.34,0.00017249,2]
[346445395,1734979380846,-500.0,0.00017249,2]
[346445396,1734979380869,-562.14,0.00017249,2]
[346445397,1734979380892,-2611.64,0.00017249,2]
[346445398,1734979380914,-500.0,0.0001725,2]
[346445399,1734979380935,-500.0,0.0001725,2]
[346445400,1734979380957,-504.78,0.0001725,2]
[346445401,1734979380981,-500.0,0.0001725,2]
[346445402,1734979381007,-666.71,0.0001725,2]
[346445403,1734979381031,-1806.94,0.0001725,2]
[346445404,1734979381052,-786.6,0.0001725,2]
[346445405,1734979381075,-893.14,0.0001725,2]
[346445406,1734979381097,-500.0,0.0001725,2]
[346445407,1734979381119,-1900.12,0.0001725,2]
[346445408,1734979381140,-500.0,0.0001725,2]
[346445409,1734979381162,-500.0,0.0001725,2]
[346445410,1734979381184,-1751.96,0.0001725,2]
[346445411,1734979381205,-500.0,0.0001725,2]
[346445412,1734979381228,-500.0,0.0001725,2]
[346445413,1734979381250,-500.0,0.0001725,2]
[346445414,1734979381271,-500.0,0.0001725,2]
[346445415,1734979381293,-637.54,0.0001725,2]
[346445416,1734979381314,-500.0,0.0001725,2]
[346445417,1734979381336,-500.0,0.0001725,2]
[346445418,1734979381357,-500.0,0.0001725,2]
[346445419,1734979381378,-702.98,0.0001725,2]
[346445420,1734979381399,-500.0,0.0001725,2]
[346445421,1734979381421,-500.0,0.0001725,2]
[346445422,1734979381442,-1050.11,0.0001725,2]
[346445423,1734979381462,-500.0,0.0001725,2]
[346445424,1734979381486,-1583.08,0.0001725,2]
[346445425,1734979381507,-588.33,0.0001725,2]
[346445426,1734979381529,-1212.82,0.0001725,2]
[346445427,1734979381551,-1317.91,0.0001725,2]
[346445428,1734979381573,-500.0,0.0001725,2]
[346445429,1734979381594,-500.0,0.0001725,2]
[346445430,1734979381616,-2098.49,0.0001725,2]
[346445431,1734979381637,-968.46,0.0001725,2]
[346445432,1734979381658,-2430.25,0.0001725,2]
[346445433,1734979381679,-155.940262,0.0001725,2]
[346445434,1734979381700,-154.072404,0.0001725,2]
[346445435,1734979381723,-2365.499772,0.0001725,2]
[346445436,1734979381745,-500.0,0.0001725,2]
[346445437,1734979381766,-215.31590147,0.0001725,2]
[346445438,1734979381787,-1698.12,0.0001725,2]
[346445439,1734979381809,-2816.27987,0.0001725,2]
[346445440,1734979381830,-500.0,0.0001725,2]
[346445441,1734979381852,-500.0,0.0001725,2]
[346445442,1734979381872,-500.0,0.0001725,2]
[346445443,1734979381894,-616.12,0.0001725,2]
[346445444,1734979381915,-500.0,0.0001725,2]
[346445445,1734979381936,-963.83,0.0001725,2]
[346445446,1734979381957,-502.37,0.0001725,2]
[346445447,1734979381980,-500.0,0.0001725,2]
[346445448,1734979382004,-500.0,0.0001725,2]
[346445449,1734979382027,-2025.39,0.0001725,2]
[346445450,1734979382048,-500.0,0.0001725,2]
[346445451,1734979382072,-500.0,0.0001725,2]
[346445452,1734979382108,-500.0,0.0001725,2]
[346445453,1734979382134,-1846.27,0.0001725,2]
[346445454,1734979382155,-177.88368371,0.0001725,2]
[346445455,1734979382176,-1076.87,0.0001725,2]
[346445456,1734979382197,-500.0,0.0001725,2]
[346445457,1734979382218,-610.36,0.0001725,2]
[346445458,1734979382239,-500.0,0.0001725,2]
[346445459,1734979382260,-500.0,0.0001725,2]
[346445460,1734979382282,-529.09,0.0001725,2]
[346445461,1734979382303,-500.0,0.0001725,2]
[346445462,1734979382324,-3864.35,0.0001725,2]
[346445463,1734979382345,-500.0,0.0001725,2]
[346445464,1734979382366,-1605.61,0.0001725,2]
[346445465,1734979382388,-500.0,0.0001725,2]
[346445466,1734979382409,-500.0,0.0001725,2]
[346445467,1734979382430,-3749.73,0.0001725,2]
[346445468,1734979382451,-500.0,0.0001725,2]
[346445469,1734979382472,-3705.58,0.0001725,2]
[346445470,1734979382494,-11996.29,0.0001725,2]
[346445471,1734979382516,-500.0,0.0001725,2]
[346445472,1734979382537,-9670.05,0.0001725,2]
[346445473,1734979382559,-186.68618,0.0001725,2]
[346445474,1734979382580,-1197.74,0.0001725,2]
[346445475,1734979382601,-4374.46,0.0001725,2]
[346445476,1734979382622,-2944.1,0.0001725,2]
[346445477,1734979382644,-2117.94,0.0001725,2]
[346445478,1734979382666,-500.0,0.0001725,2]
[346445479,1734979382689,-4724.75,0.0001725,2]
[346445480,1734979382711,-1782.41,0.0001725,2]
[346445481,1734979382733,-2042.71,0.0001725,2]
[346445482,1734979382756,-500.0,0.0001725,2]
[346445483,1734979382778,-230.710833,0.0001725,2]
[346445484,1734979382799,-982.33,0.0001725,2]
[346445485,1734979382820,-1185.9,0.0001725,2]
[346445486,1734979382842,-955.67,0.0001725,2]
[346445487,1734979382863,-2994.35,0.0001725,2]
[346445488,1734979382886,-500.0,0.0001725,2]
[346445489,1734979382910,-17536.53,0.0001725,2]
[346445490,1734979382934,-500.0,0.0001725,2]
[346445491,1734979382956,-10065.38,0.0001725,2]
[346445492,1734979382980,-436.36662447,0.0001725,2]
[346445493,1734979383007,-4202.45,0.0001725,2]
[346445494,1734979383039,-2618.72,0.0001725,2]
[346445495,1734979383069,-2758.51,0.0001725,2]
[346445496,1734979383092,-500.0,0.0001725,2]
[346445497,1734979383114,-500.0,0.0001725,2]
[346445498,1734979383138,-536.48753039,0.0001725,2]
[346445499,1734979383160,-500.0,0.0001725,2]
[346445500,1734979383185,-1692.12,0.0001725,2]
[346445501,1734979383209,-1476.12,0.0001725,2]
[346445502,1734979383237,-5401.27,0.0001725,2]
[346445503,1734979383259,-2374.68,0.0001725,2]
[346445504,1734979383282,-3713.81,0.0001725,2]
[346445505,1734979383306,-500.0,0.0001725,2]
[346445506,1734979383328,-500.0,0.0001725,2]
[346445507,1734979383351,-1665.7,0.0001725,2]
[346445508,1734979383374,-3855.11,0.0001725,2]
[346445509,1734979383396,-500.0,0.0001725,2]
[346445510,1734979383418,-500.0,0.0001725,2]
[346445511,1734979383441,-500.0,0.0001725,2]
[346445512,1734979383462,-500.0,0.0001725,2]
[346445513,1734979383489,-1797.59,0.0001725,2]
[346445514,1734979383512,-500.0,0.0001725,2]
[346445515,1734979383534,-500.0,0.0001725,2]
[346445516,1734979383556,-1767.34,0.0001725,2]
[346445517,1734979383577,-500.0,0.0001725,2]
[346445518,1734979383600,-2120.18,0.0001725,2]
[346445519,1734979383622,-3292.45,0.0001725,2]
[346445520,1734979383644,-4101.67,0.0001725,2]
[346445521,1734979383665,-3393.76,0.0001725,2]
[346445522,1734979383686,-678.48,0.0001725,2]
[346445523,1734979383709,-2795.19,0.0001725,2]
[346445524,1734979383735,-500.0,0.0001725,2]
[346445525,1734979383759,-2461.1,0.0001725,2]
[346445526,1734979383781,-500.0,0.0001725,2]
[346445527,1734979383804,-2240.73,0.0001725,2]
[346445528,1734979383827,-6109.95,0.0001725,2]
[346445529,1734979384142,-669.16,0.0001725,2]
[346445530,1734979384166,-500.0,0.0001725,2]
[346445531,1734979384190,-500.0,0.0001725,2]
[346445532,1734979384212,-502.04644721,0.0001725,2]
[346445533,1734979384235,-500.0,0.0001725,2]
[346445534,1734979384258,-500.0,0.0001725,2]
[346445535,1734979384281,-10669.25,0.0001725,2]
[346445536,1734979384303,-503.47782715,0.0001725,2]
[346445537,1734979384326,-501.55068953,0.0001725,2]
[346445538,1734979384349,-2820.61,0.0001725,2]
[346445539,1734979384371,-500.0,0.0001725,2]
[346445540,1734979384393,-2902.88,0.0001725,2]
[346445541,1734979384415,-630.77,0.0001725,2]
[346445542,1734979384438,-2638.98,0.0001725,2]
[346445543,1734979384460,-14643.32,0.0001725,2]
[346445544,1734979384483,-2212.02,0.0001725,2]
[346445545,1734979384506,-500.0,0.0001725,2]
[346445546,1734979384529,-3554.28,0.0001725,2]
[346445547,1734979384552,-3080.94,0.0001725,2]
[346445548,1734979384573,-500.45572911,0.0001725,2]
[346445549,1734979384594,-500.0,0.0001725,2]
[346445550,1734979384615,-6056.87,0.0001725,2]
[346445551,1734979384637,-500.0,0.0001725,2]
[346445552,1734979384659,-500.0,0.0001725,2]
[346445553,1734979384680,-3011.92,0.0001725,2]
[346445554,1734979384702,-1709.36,0.0001725,2]
[346445555,1734979384724,-894.16,0.0001725,2]
[346445556,1734979384746,-500.0,0.0001725,2]
[346445557,1734979384768,-3988.81,0.0001725,2]
[346445558,1734979384789,-500.0,0.0001725,2]
[346445559,1734979384811,-2989.24,0.0001725,2]
[346445560,1734979384835,-500.0,0.0001725,2]
[346445561,1734979384857,-2421.45,0.0001725,2]
[346445562,1734979384880,-2573.04,0.0001725,2]
[346445563,1734979384902,-967.28,0.00017251,2]
[346445564,1734979384924,-502.98,0.00017251,2]
[346445565,1734979384946,-500.0,0.00017251,2]
[346445566,1734979384968,-500.0,0.00017251,2]
[346445567,1734979384993,-500.0,0.00017251,2]
[346445568,1734979385015,-524.35,0.00017251,2]
[346445569,1734979385036,-500.0,0.00017251,2]
[346445570,1734979385058,-500.0,0.00017251,2]
[346445571,1734979385081,-500.0,0.00017251,2]
[346445572,1734979385103,-769.01,0.00017251,2]
[346445573,1734979385124,-885.31,0.00017251,2]
[346445574,1734979385145,-844.77,0.00017251,2]
[346445575,1734979385167,-500.0,0.00017251,2]
[346445576,1734979385189,-819.26,0.00017251,2]
[346445577,1734979385211,-500.0,0.00017251,2]
[346445578,1734979385234,-500.0,0.00017251,2]
[346445579,1734979385256,-570.82,0.00017251,2]
[346445580,1734979385278,-500.0,0.00017251,2]
[346445581,1734979385299,-258.22512522,0.00017251,2]
[346445582,1734979385321,-500.0,0.00017251,2]
[346445583,1734979385346,-500.0,0.00017251,2]
[346445584,1734979385368,-500.0,0.00017251,2]
[346445585,1734979385390,-685.36,0.00017251,2]
[346445586,1734979385412,-283.21715463,0.00017251,2]
[346445587,1734979385434,-500.0,0.00017251,2]
[346445588,1734979385456,-500.0,0.00017251,2]
[346445589,1734979385480,-500.0,0.00017251,2]
[346445590,1734979385502,-500.0,0.00017251,2]
[346445591,1734979385524,-500.0,0.00017251,2]
[346445592,1734979385547,-665.6,0.00017251,2]
[346445593,1734979385570,-500.0,0.00017251,2]
[346445594,1734979385592,-500.0,0.00017251,2]
[346445595,1734979385614,-574.29,0.00017251,2]
[346445596,1734979385636,-500.0,0.00017251,2]
[346445597,1734979385659,-532.94,0.00017251,2]
[346445598,1734979385680,-555.42,0.00017251,2]
[346445599,1734979385703,-1520.46,0.00017251,2]
[346445600,1734979385726,-500.0,0.00017251,2]
[346445601,1734979385749,-984.33,0.00017251,2]
[346445602,1734979385772,-500.0,0.00017251,2]
[346445603,1734979385796,-1584.84,0.00017251,2]
[346445604,1734979385819,-592.79,0.00017251,2]
[346445605,1734979385842,-500.0,0.00017251,2]
[346445606,1734979385865,-520.09,0.00017251,2]
[346445607,1734979385890,-500.0,0.00017251,2]
[346445608,1734979385912,-500.0,0.00017251,2]
[346445609,1734979385934,-500.0,0.00017251,2]
[346445610,1734979385957,-818.62,0.00017251,2]
[346445611,1734979385981,-617.66,0.00017251,2]
[346445612,1734979386007,-500.0,0.00017251,2]
[346445613,1734979386030,-635.45,0.00017251,2]
[346445614,1734979386054,-837.08,0.00017251,2]
[346445615,1734979386076,-500.0,0.00017251,2]
[346445616,1734979386099,-500.0,0.00017251,2]
[346445617,1734979386122,-500.0,0.00017251,2]
[346445618,1734979386145,-500.0,0.00017251,2]